Workbook

Sheet 2019
B2: Name | C2: Jan | D2: Feb | E2: Mar
B3: Jack | C3: 1350 | D3: 1145 | E3: 3421
B4: Oliver | C4: 1620 | D4: 2314 | E4: 1543
B5: Leo | C5: 1350 | D5: 2543 | E5: 2543
B6: Anne | C6: 1500 | D6: 2000 | E6: 2500
B7: David | C7: 1700 | D7: 1200 | E7: 1700

Sheet 2018
B2: Name | C2: Jan | D2: Feb | E2: Mar
B3: Jack | C3: 1144 | D3: 1145 | E3: 3421
B4: Oliver | C4: 1267 | D4: 1268 | E4: 3544
B5: Leo | C5: 1390 | D5: 1391 | E5: 3667
B6: Anne | C6: 1513 | D6: 1514 | E6: 3790
B7: David | C7: 1636 | D7: 1637 | E7: 3913

Sheet 2017
B2: Name | C2: Jan | D2: Feb | E2: Mar
B3: Jack | C3: 1350 | D3: 1145 | E3: 3421
B4: Oliver | C4: 1620 | D4: 2314 | E4: 1543
B5: Leo | C5: 1350 | D5: 2543 | E5: 2543
B6: Anne | C6: 1500 | D6: 2000 | E6: 2500
B7: David | C7: 1700 | D7: 1200 | E7: 1700

Sheet 2020
B2: Name | C2: Jan | D2: Feb | E2: Mar
B3: Jack | C3: 1144 | D3: 1145 | E3: 3421
B4: Oliver | C4: 1267 | D4: 1268 | E4: 3544
B5: Leo | C5: 1390 | D5: 1391 | E5: 3667
B6: Anne | C6: 1513 | D6: 1514 | E6: 3790
B7: David | C7: 1636 | D7: 1637 | E7: 3913

Sheet 2021
B2: Name | C2: Jan | D2: Feb | E2: Mar
B3: Jack | C3: 2312 | D3: 3214 | E3: 1664
B4: Oliver | C4: 2535 | D4: 3437 | E4: 1887
B5: Leo | C5: 2758 | D5: 3660 | E5: 2110
B6: Anne | C6: 2981 | D6: 3883 | E6: 2333
B7: David | C7: 3204 | D7: 4106 | E7: 2556

Sheet Consolidate Tool
B2: Using Consolidate Tool
C4: Jan | D4: Feb | E4: Mar
C5: ='2019'!$C$3 -> 1350 | D5: ='2019'!$D$3 -> 1145 | E5: ='2019'!$E$3 -> 3421
C6: ='2020'!$C$3 -> 1144 | D6: ='2020'!$D$3 -> 1145 | E6: ='2020'!$E$3 -> 3421
C7: ='2021'!$C$3 -> 2312 | D7: ='2021'!$D$3 -> 3214 | E7: ='2021'!$E$3 -> 1664
B8: Jack | C8: =SUM(C5:C7) -> 4806 | D8: =SUM(D5:D7) -> 5504 | E8: =SUM(E5:E7) -> 8506
C9: ='2019'!$C$4 -> 1620 | D9: ='2019'!$D$4 -> 2314 | E9: ='2019'!$E$4 -> 1543
C10: ='2020'!$C$4 -> 1267 | D10: ='2020'!$D$4 -> 1268 | E10: ='2020'!$E$4 -> 3544
C11: ='2021'!$C$4 -> 2535 | D11: ='2021'!$D$4 -> 3437 | E11: ='2021'!$E$4 -> 1887
B12: Oliver | C12: =SUM(C9:C11) -> 5422 | D12: =SUM(D9:D11) -> 7019 | E12: =SUM(E9:E11) -> 6974
C13: ='2019'!$C$5 -> 1350 | D13: ='2019'!$D$5 -> 2543 | E13: ='2019'!$E$5 -> 2543
C14: ='2020'!$C$5 -> 1390 | D14: ='2020'!$D$5 -> 1391 | E14: ='2020'!$E$5 -> 3667
C15: ='2021'!$C$5 -> 2758 | D15: ='2021'!$D$5 -> 3660 | E15: ='2021'!$E$5 -> 2110
B16: Leo | C16: =SUM(C13:C15) -> 5498 | D16: =SUM(D13:D15) -> 7594 | E16: =SUM(E13:E15) -> 8320
C17: ='2019'!$C$6 -> 1500 | D17: ='2019'!$D$6 -> 2000 | E17: ='2019'!$E$6 -> 2500
C18: ='2020'!$C$6 -> 1513 | D18: ='2020'!$D$6 -> 1514 | E18: ='2020'!$E$6 -> 3790
C19: ='2021'!$C$6 -> 2981 | D19: ='2021'!$D$6 -> 3883 | E19: ='2021'!$E$6 -> 2333
B20: Anne | C20: =SUM(C17:C19) -> 5994 | D20: =SUM(D17:D19) -> 7397 | E20: =SUM(E17:E19) -> 8623
C21: ='2019'!$C$7 -> 1700 | D21: ='2019'!$D$7 -> 1200 | E21: ='2019'!$E$7 -> 1700
C22: ='2020'!$C$7 -> 1636 | D22: ='2020'!$D$7 -> 1637 | E22: ='2020'!$E$7 -> 3913
C23: ='2021'!$C$7 -> 3204 | D23: ='2021'!$D$7 -> 4106 | E23: ='2021'!$E$7 -> 2556
B24: David | C24: =SUM(C21:C23) -> 6540 | D24: =SUM(D21:D23) -> 6943 | E24: =SUM(E21:E23) -> 8169

Sheet Power Query Outout
A1: Name | B1: Data.Column1 | C1: Data.Column2 | D1: Data.Column3 | E1: Data.Column4
A2: 2019 | B2: Name | C2: Jan | D2: Feb | E2: Mar
A3: 2019 | B3: Jack | C3: 1350 | D3: 1145 | E3: 3421
A4: 2019 | B4: Oliver | C4: 1620 | D4: 2314 | E4: 1543
A5: 2019 | B5: Leo | C5: 1350 | D5: 2543 | E5: 2543
A6: 2019 | B6: Anne | C6: 1500 | D6: 2000 | E6: 2500
A7: 2019 | B7: David | C7: 1700 | D7: 1200 | E7: 1700
A8: 2020 | B8: Name | C8: Jan | D8: Feb | E8: Mar
A9: 2020 | B9: Jack | C9: 1144 | D9: 1145 | E9: 3421
A10: 2020 | B10: Oliver | C10: 1267 | D10: 1268 | E10: 3544
A11: 2020 | B11: Leo | C11: 1390 | D11: 1391 | E11: 3667
A12: 2020 | B12: Anne | C12: 1513 | D12: 1514 | E12: 3790
A13: 2020 | B13: David | C13: 1636 | D13: 1637 | E13: 3913
A14: 2021 | B14: Name | C14: Jan | D14: Feb | E14: Mar
A15: 2021 | B15: Jack | C15: 2312 | D15: 3214 | E15: 1664
A16: 2021 | B16: Oliver | C16: 2535 | D16: 3437 | E16: 1887
A17: 2021 | B17: Leo | C17: 2758 | D17: 3660 | E17: 2110
A18: 2021 | B18: Anne | C18: 2981 | D18: 3883 | E18: 2333
A19: 2021 | B19: David | C19: 3204 | D19: 4106 | E19: 2556
